[Event "FIDE WCCC U8 2018"]
[Site "Santiago de Compostela"]
[Date "2018.11.07"]
[Round "3"]
[White "Finek, Vaclav"]
[Black "Prada Villagrasa, Pau Manel"]
[Result "0-1"]
[ECO "A40"]
[WhiteElo "1942"]
[BlackElo "1530"]
[Annotator "NA RC"]
[PlyCount "68"]
[EventDate "2018.11.04"]
[EventType "swiss"]
[EventCountry "ESP"]
[SourceTitle "playchess.com"]
[Source "ChessBase"]
[SourceQuality "1"]
[TimeControl "40/5400+30:1800+30"]

{[%evp 8,68,12,22,13,4,25,31,155,152,174,156,170,163,229,194,239,214,283,275,287,289,309,140,145,147,146,32767,160,157,185,192,201,210,201,149,208,0,212,224,212,204,236,192,191,197,216,147,150,142,241,236,492,32767,577,595,754,845,1055,623,593,-29997,-29998]} 1. d4 {[%emt 0:00:00]} e6 {[%emt 0:01:17]} 2. c4 {[%emt 0:00:00]} b6 {[%emt 0:03:02]} 3. Nf3 {[%emt 0:00:40]} Bb7 {[%emt 0:02:23]} 4. g3 {[%emt 0:01:20]} Bb4+ {[%emt 0:03:04]} 5. Bd2 {[%emt 0:01:06]} Bxd2+ {[%emt 0:02:12] A40: Unusual replies to 1 d4} (5... Bxf3 6. exf3 Bxd2+ 7. Qxd2 Nf6 8. Bg2 d5 9. f4 Nc6 10. Nc3 Ne7 11. O-O c6 12. cxd5 cxd5 13. Rfc1 O-O 14. Rc2 Qd7 15. Rac1 {½-½ (36) Batchuluun,T (2570)-Giri,A (2780) Batumi 2018}) 6. Nbxd2 {[%emt 0:00:46] LiveBook: 6 Games} ({Reject} 6. Kxd2 Qf6 $17) 6... Nc6 {[%emt 0:04:13]} 7. e3 $146 {[%emt 0:02:51]} ({Predecessor:} 7. Bg2 Nxd4 8. O-O Nxf3+ 9. Nxf3 Nf6 10. b4 O-O 11. Qb3 Qe7 12. Rfd1 d5 13. c5 bxc5 14. bxc5 {0-1 (32) Lafaurie,P (2072)-Plantet,M (1910) Montigny le Bretonneux 2002}) 7... e5 {[%emt 0:05:41]} (7... f5 $11) 8. d5 {[%emt 0:00:41]} ({Reject} 8. dxe5 $6 Nxe5 9. Be2 (9. Nxe5 Bxh1 10. Qg4 d6 $15) 9... Nf6 $11) 8... Nb4 {[%emt 0:06:34]} 9. a3 {[%emt 0:05:07]} Na6 {[%emt 0:01:58]} 10. Nxe5 {[%emt 0:05:06]} Qf6 {[%emt 0:05:25]} (10... Qe7 $142) 11. Nd3 {[%emt 0:01:00]} d6 {[%emt 0:02:39]} 12. Qa4+ {[%emt 0:01:41]} Kd8 {[%emt 0:01:32]} 13. Bh3 {[%emt 0:01:46]} Nb8 {[%emt 0:06:26]} 14. O-O {[%emt 0:01:50]} h5 {[%emt 0:03:09]} 15. Kg2 {[%emt 0:29:38]} (15. Rae1 $18 {has better winning chances.}) 15... g5 {[%emt 0:01:50]} 16. Kg1 {[%emt 0:02:46]} g4 {[%emt 0:01:52]} 17. Bg2 {[%emt 0:00:01]} h4 {[%emt 0:01:40]} 18. Rfc1 {[%emt 0:01:55]} Ne7 {[%emt 0:06:17]} 19. b4 {[%emt 0:08:04]} hxg3 {[%emt 0:00:49]} 20. hxg3 {[%emt 0:00:18]} Nd7 $1 $11 {[%emt 0:05:01]} 21. Qb3 {[%emt 0:01:25]} Rb8 {[%emt 0:02:49]} 22. Qa4 $2 {[%emt 0:03:40]} (22. Qd1 $18) 22... a6 $2 {[%emt 0:00:54]} 23. Qd1 {[%emt 0:02:33]} Qg5 {[%emt 0:02:35]} 24. Nf4 {[%emt 0:04:35]} Nf6 {[%emt 0:03:58]} 25. Ne4 {[%emt 0:01:44]} Nxe4 {[%emt 0:01:02]} 26. Bxe4 {[%emt 0:00:02]} Bc8 {[%emt 0:01:22]} 27. Ne2 {[%emt 0:04:31]} Bf5 {[%emt 0:01:22] [#]} 28. Bg2 $1 {[%emt 0:00:06]} ({Don't do} 28. Bxf5 $6 Qxf5 29. Nf4 Qe4 $16) 28... Qg6 {[%emt 0:02:44]} (28... Ng6 $16 29. c5 bxc5) 29. Qd4 {[%emt 0:01:25]} Kd7 $2 {[%emt 0:01:45]} (29... Qh6 {is a better defense.} 30. Kf1 Bd7) 30. e4 {[%emt 0:00:19]} Qh5 {[%emt 0:01:13]} 31. exf5 {[%emt 0:01:04]} Rh7 {[%emt 0:00:42]} 32. c5 {[%emt 0:02:25]} Rbh8 {[%emt 0:00:27]} 33. c6+ {[%emt 0:00:21]} Kd8 {[%emt 0:00:08]} 34. Qd3 $4 {[%emt 0:01:11] [#]} (34. Kf1 $18) 34... Qh1+ {[%emt 0:00:39]} 0-1

[Event "FIDE WCCC U8 2018"]
[Site "Santiago de Compostela"]
[Date "2018.11.07"]
[Round "3"]
[White "Nurgaliyev, Sauat"]
[Black "Yonal, Timur"]
[Result "1-0"]
[ECO "B41"]
[WhiteElo "1764"]
[BlackElo "1524"]
[Annotator "NA RC"]
[PlyCount "113"]
[EventDate "2018.11.04"]
[EventType "swiss"]
[EventCountry "ESP"]
[SourceTitle "playchess.com"]
[Source "ChessBase"]
[SourceQuality "1"]
[TimeControl "40/5400+30:1800+30"]

1. e4 {[%emt 0:00:00]} c5 {[%emt 0:00:00]} 2. Nf3 {[%emt 0:00:00]} e6 {[%emt 0:00:00]} 3. d4 {[%emt 0:00:00]} cxd4 {[%emt 0:00:12]} 4. Nxd4 {[%emt 0:00:06]} a6 {[%emt 0:00:00]} 5. c4 {[%emt 0:00:15]} Nf6 {[%emt 0:00:21]} 6. Nc3 {[%emt 0:00:27]} Qc7 {[%emt 0:00:05]} 7. a3 {[%emt 0:04:08]} Be7 {[%emt 0:00:36]} 8. Be3 {[%emt 0:01:05]} d6 {[%emt 0:03:49]} 9. Be2 {[%emt 0:01:18]} Nbd7 {[%emt 0:01:31]} 10. O-O {[%emt 0:02:57]} b6 {[%emt 0:00:47]} 11. f4 {[%emt 0:23:16]} Bb7 {[%emt 0:03:42]} 12. Qc2 {[%emt 0:01:29]} O-O {[%emt 0:03:03]} 13. b4 {[%emt 0:01:37]} Rac8 {[%emt 0:01:35]} 14. Rac1 {[%emt 0:02:21]} Rfe8 {[%emt 0:00:23]} 15. Qb1 {[%emt 0:37:00]} Qb8 {[%emt 0:08:56]} 16. Nb3 {[%emt 0:02:21]} Qa8 {[%emt 0:03:11]} 17. Bd3 {[%emt 0:01:43]} Ng4 {[%emt 0:02:49]} 18. Rf3 {[%emt 0:04:21]} Nxe3 {[%emt 0:00:26]} 19. Rxe3 {[%emt 0:00:02]} g6 {[%emt 0:02:25]} 20. Rf1 {[%emt 0:02:01]} b5 {[%emt 0:04:27]} 21. Na5 {[%emt 0:00:30]} Qa7 {[%emt 0:01:05]} 22. Qe1 {[%emt 0:05:32]} Ba8 {[%emt 0:01:18]} 23. Qf2 {[%emt 0:01:03]} Bd8 {[%emt 0:01:06]} 24. Nd1 {[%emt 0:06:31]} Bb6 {[%emt 0:01:37]} 25. g4 {[%emt 0:01:26]} Bxe3 {[%emt 0:00:55]} 26. Nxe3 {[%emt 0:00:02]} Qb6 {[%emt 0:10:17]} 27. g5 {[%emt 0:01:02]} Rb8 {[%emt 0:07:16]} 28. h4 {[%emt 0:00:35]} Qd4 {[%emt 0:01:08]} 29. Rd1 {[%emt 0:00:36]} Qg7 {[%emt 0:01:20]} 30. Ng4 {[%emt 0:00:23]} f5 {[%emt 0:01:34]} 31. Nh6+ {[%emt 0:00:35]} Kh8 {[%emt 0:00:35]} 32. Qa7 {[%emt 0:00:32]} fxe4 {[%emt 0:01:01]} 33. Be2 {[%emt 0:00:05]} d5 {[%emt 0:01:15]} 34. c5 {[%emt 0:00:30]} Rec8 {[%emt 0:13:45]} 35. Qxa6 {[%emt 0:01:02]} Nf8 {[%emt 0:05:43]} 36. Bxb5 {[%emt 0:00:22]} Rc7 {[%emt 0:03:33]} 37. Bf1 {[%emt 0:00:42]} Qc3 {[%emt 0:04:30]} 38. Qe2 {[%emt 0:00:32]} Qg3+ {[%emt 0:00:25]} 39. Bg2 {[%emt 0:00:09]} Qxa3 {[%emt 0:01:34]} 40. Qa6 {[%emt 0:00:00]} Qe3+ {[%emt 0:00:00]} 41. Kh1 {[%emt 0:02:04]} Qc3 {[%emt 0:01:52]} 42. Qd6 {[%emt 0:02:27]} Qg7 {[%emt 0:00:18]} 43. Rb1 {[%emt 0:01:43]} Rd7 {[%emt 0:01:29]} 44. Qxb8 {[%emt 0:00:19]} Ra7 {[%emt 0:01:08]} 45. c6 {[%emt 0:00:53]} e3 {[%emt 0:00:30]} 46. Qe5 {[%emt 0:00:30]} Qxe5 {[%emt 0:00:30]} 47. fxe5 {[%emt 0:00:30]} d4 {[%emt 0:00:30]} 48. Be4 {[%emt 0:02:55]} Nd7 {[%emt 0:01:35]} 49. Ng4 {[%emt 0:02:05]} Nb6 {[%emt 0:01:32]} 50. Nb3 {[%emt 0:02:02]} d3 {[%emt 0:00:49]} 51. Nxe3 {[%emt 0:01:32]} Na4 {[%emt 0:01:14]} 52. Ra1 {[%emt 0:01:31]} Kg7 {[%emt 0:01:18]} 53. Nc5 {[%emt 0:01:12]} d2 {[%emt 0:00:46]} 54. Rxa4 {[%emt 0:01:44]} Rf7 {[%emt 0:00:19]} 55. Nxe6+ {[%emt 0:00:22]} Kg8 {[%emt 0:00:18]} 56. Rxa8+ {[%emt 0:00:08]} Rf8 {[%emt 0:00:03]} 57. Rxf8# {[%emt 0:00:02]} 1-0

[Event "FIDE WCCC U8 2018"]
[Site "Santiago de Compostela"]
[Date "2018.11.07"]
[Round "3"]
[White "Lu, Miaoyi"]
[Black "Chen, Zhiyuan"]
[Result "1-0"]
[ECO "D76"]
[WhiteElo "1717"]
[BlackElo "1459"]
[Annotator "NA RC"]
[PlyCount "107"]
[EventDate "2018.11.04"]
[EventType "swiss"]
[EventCountry "ESP"]
[SourceTitle "playchess.com"]
[Source "ChessBase"]
[SourceQuality "1"]
[TimeControl "40/5400+30:1800+30"]

1. d4 {[%emt 0:00:00]} Nf6 {[%emt 0:00:00]} 2. c4 {[%emt 0:00:00]} g6 {[%emt 0:00:00]} 3. g3 {[%emt 0:00:00]} Bg7 {[%emt 0:00:00]} 4. Bg2 {[%emt 0:00:00]} d5 {[%emt 0:00:00]} 5. cxd5 Nxd5 {[%emt 0:00:00]} 6. Nf3 {[%emt 0:00:07]} O-O {[%emt 0:00:00]} 7. O-O {[%emt 0:00:09]} Nb6 {[%emt 0:00:00]} 8. Nc3 {[%emt 0:00:15]} Nc6 {[%emt 0:00:06]} 9. e3 {[%emt 0:00:12]} Re8 {[%emt 0:00:11]} 10. Nh4 {[%emt 0:00:09]} Bd7 {[%emt 0:07:53]} 11. f4 {[%emt 0:02:30]} e6 {[%emt 0:02:21]} 12. Nf3 {[%emt 0:04:54]} f5 {[%emt 0:04:51]} 13. b3 {[%emt 0:04:36]} Qe7 {[%emt 0:03:05]} 14. Bb2 {[%emt 0:03:16]} Nd5 {[%emt 0:00:35]} 15. Qe2 {[%emt 0:04:51]} a6 {[%emt 0:03:32]} 16. Rfc1 {[%emt 0:06:07]} Rac8 {[%emt 0:03:12]} 17. Na4 {[%emt 0:05:23]} Ncb4 {[%emt 0:01:31]} 18. Nc3 {[%emt 0:21:05]} Nxc3 {[%emt 0:04:43]} 19. Bxc3 {[%emt 0:01:08]} Bb5 {[%emt 0:02:00]} 20. Qd2 {[%emt 0:00:29]} Nd5 {[%emt 0:00:21]} 21. Bb2 {[%emt 0:03:40]} h6 {[%emt 0:09:05]} 22. a4 {[%emt 0:05:14]} Bc6 {[%emt 0:00:54]} 23. Ba3 {[%emt 0:01:20]} Qf7 {[%emt 0:01:09]} 24. Rc5 {[%emt 0:03:27]} g5 {[%emt 0:05:09]} 25. fxg5 {[%emt 0:04:47]} hxg5 {[%emt 0:00:08]} 26. Nxg5 {[%emt 0:01:42]} Qf6 {[%emt 0:01:08]} 27. Nf3 {[%emt 0:00:30]} Bh6 {[%emt 0:00:17]} 28. Re1 {[%emt 0:00:44]} Bf8 {[%emt 0:00:05]} 29. Rxc6 {[%emt 0:03:47]} bxc6 {[%emt 0:00:40]} 30. Bxf8 {[%emt 0:00:09]} Rxf8 {[%emt 0:00:21]} 31. Ne5 {[%emt 0:00:50]} Qg5 {[%emt 0:02:02]} 32. Nxc6 {[%emt 0:01:47]} Rf7 {[%emt 0:00:51]} 33. Qa5 {[%emt 0:05:08]} Nxe3 {[%emt 0:06:17]} 34. Qxa6 {[%emt 0:03:22]} Re8 {[%emt 0:00:10]} 35. Ne5 {[%emt 0:01:36]} Rg7 {[%emt 0:05:15]} 36. Qc6 {[%emt 0:01:20]} Ree7 {[%emt 0:00:15]} 37. a5 {[%emt 0:04:20]} f4 {[%emt 0:00:33]} 38. a6 {[%emt 0:02:05]} fxg3 {[%emt 0:01:07]} 39. a7 {[%emt 0:00:57]} gxh2+ {[%emt 0:01:45]} 40. Kh1 {[%emt 0:00:00]} Qg3 {[%emt 0:00:00]} 41. a8=Q+ {[%emt 0:00:28]} Kh7 {[%emt 0:02:46]} 42. Qe4+ {[%emt 0:01:11]} Nf5 {[%emt 0:00:09]} 43. Rf1 {[%emt 0:05:30]} Rg5 {[%emt 0:02:55]} 44. Qf4 {[%emt 0:02:34]} Qxf4 {[%emt 0:04:53]} 45. Rxf4 {[%emt 0:00:07]} Rh5 {[%emt 0:00:05]} 46. Qf3 {[%emt 0:00:38]} Rh6 {[%emt 0:00:41]} 47. Ng4 {[%emt 0:00:21]} Rg6 {[%emt 0:00:35]} 48. Kxh2 {[%emt 0:01:02]} Reg7 {[%emt 0:00:24]} 49. d5 {[%emt 0:05:04]} Rg5 {[%emt 0:02:34]} 50. dxe6 {[%emt 0:02:23]} Ne7 {[%emt 0:01:06]} 51. Qh3+ {[%emt 0:00:26]} Kg8 {[%emt 0:00:10]} 52. Nh6+ {[%emt 0:00:22]} Kh8 {[%emt 0:01:10]} 53. Nf7+ {[%emt 0:00:02]} Kg8 {[%emt 0:00:30]} 54. Qh8# {[%emt 0:00:03]} 1-0

[Event "FIDE WCCC U8 2018"]
[Site "Santiago de Compostela"]
[Date "2018.11.07"]
[Round "3"]
[White "Udipi, Kala Kishan"]
[Black "Tulendinov, Dinmukhammed"]
[Result "0-1"]
[ECO "E15"]
[WhiteElo "1653"]
[BlackElo "1430"]
[Annotator "NA RC"]
[PlyCount "62"]
[EventDate "2018.11.04"]
[EventType "swiss"]
[EventCountry "ESP"]
[SourceTitle "playchess.com"]
[Source "ChessBase"]
[SourceQuality "1"]
[TimeControl "40/5400+30:1800+30"]

1. d4 Nf6 2. Nf3 e6 3. c4 b6 4. g3 Ba6 5. Qc2 Bb4+ 6. Bd2 Be7 7. Bg2 c6 8. O-O O-O 9. Re1 d5 10. b3 Nbd7 11. a4 Rc8 12. cxd5 cxd5 13. Nc3 Ne4 14. Qb2 Nxc3 15. Bxc3 Qc7 16. Rac1 Qb8 17. e3 Rc7 18. Bf1 Bxf1 19. Kxf1 Rfc8 20. Kg2 Nf6 21. Nd2 Rc6 22. Qa1 R8c7 23. f3 Qc8 24. Nb1 Bb4 25. Bxb4 Rxc1 26. Rxc1 Rxc1 27. Bc3 Qa6 28. Kh3 Qf1+ 29. Kh4 Rxb1 30. Qa3 Qxf3 31. Qd6 Qg4# 0-1

[Event "FIDE WCCC U8 2018"]
[Site "Santiago de Compostela"]
[Date "2018.11.07"]
[Round "3"]
[White "Usov, Aleksandr E."]
[Black "Ibanez Macias, Julen"]
[Result "1-0"]
[ECO "A43"]
[WhiteElo "1640"]
[BlackElo "1235"]
[Annotator "NA RC"]
[PlyCount "58"]
[EventDate "2018.11.04"]
[EventType "swiss"]
[EventCountry "ESP"]
[SourceTitle "playchess.com"]
[Source "ChessBase"]
[SourceQuality "1"]
[TimeControl "40/5400+30:1800+30"]

1. d4 {[%emt 0:00:00]} c5 {[%emt 0:00:05]} 2. dxc5 {[%emt 0:00:29]} e6 {[%emt 0:02:25]} 3. a3 {[%emt 0:08:44]} Bxc5 {[%emt 0:04:46]} 4. Nf3 {[%emt 0:00:21]} Nf6 {[%emt 0:01:50]} 5. b4 {[%emt 0:01:06]} Bb6 {[%emt 0:01:54]} 6. Bb2 {[%emt 0:01:32]} a6 {[%emt 0:03:41]} 7. e3 {[%emt 0:00:40]} Nc6 {[%emt 0:01:44]} 8. Be2 {[%emt 0:00:38]} O-O {[%emt 0:00:45]} 9. O-O {[%emt 0:00:33]} d5 {[%emt 0:05:24]} 10. Nbd2 {[%emt 0:00:40]} Re8 {[%emt 0:05:32]} 11. c4 {[%emt 0:00:58]} e5 {[%emt 0:10:19]} 12. cxd5 {[%emt 0:01:36]} Nxd5 {[%emt 0:03:04]} 13. Bc4 {[%emt 0:10:24]} Bg4 {[%emt 0:02:01]} 14. Qb3 {[%emt 0:00:59]} Be6 {[%emt 0:06:42]} 15. Rfd1 {[%emt 0:05:10]} Nce7 {[%emt 0:12:04]} 16. e4 {[%emt 0:02:03]} Nf4 17. Bxe6 Nxe6 {[%emt 0:09:30]} 18. Nc4 {[%emt 0:00:40]} Nd4 {[%emt 0:07:28]} 19. Nxd4 {[%emt 0:00:19]} Bxd4 {[%emt 0:03:37]} 20. Nxe5 {[%emt 0:00:10]} Bxf2+ {[%emt 0:09:30]} 21. Kxf2 {[%emt 0:00:13]} Qb6+ {[%emt 0:01:16]} 22. Bd4 {[%emt 0:00:27]} Qf6+ 23. Kg1 Qf4 24. Rf1 Qxe4 {[%emt 0:03:39]} 25. Qxf7+ {[%emt 0:01:15]} Kh8 26. Rf4 Qc2 27. Raf1 Ng6 {[%emt 0:03:42]} 28. Nxg6+ {[%emt 0:01:35]} Qxg6 29. Qf8+ Rxf8 1-0

[Event "FIDE WCCC U8 2018"]
[Site "Santiago de Compostela"]
[Date "2018.11.07"]
[Round "3"]
[White "Gordeev, Denis"]
[Black "Begmuratov, Khumoyun"]
[Result "0-1"]
[ECO "C96"]
[WhiteElo "1553"]
[BlackElo "1880"]
[Annotator "NA RC"]
[PlyCount "158"]
[EventDate "2018.11.04"]
[EventType "swiss"]
[EventCountry "ESP"]
[SourceTitle "playchess.com"]
[Source "ChessBase"]
[SourceQuality "1"]
[TimeControl "40/5400+30:1800+30"]

{[%evp 8,157,16,22,42,23,29,42,42,44,45,36,36,35,28,22,58,57,90,79,104,66,70,28,70,34,71,20,79,29,68,33,33,37,62,35,64,-68,-62,-95,-78,-136,-141,-165,-128,-162,-160,-179,-150,-144,-160,-171,-160,-166,-146,-154,-138,-134,32767,32767,32767,-193,-143,-306,32767,-304,32767,-470,32767,-485,-545,-531,-565,-590,32767,32767,32767,-484,-467,32767,32767,-385,-354,32767,-433,32767,-442,-432,-399,-477,32767,32767,-532,-502,-543,-579,-391,-388,-462,-415,-440,-445,-451,-473,-464,-422,-427,-505,-490,-538,-564,-625,-703,-709,-825,-633,-1040,-769,-882,-819,-564,-858,-992,-3130,-29976,-29980,-29983,-29984,-5218,-29988,-29985,-29989,-29990,-29990,-29991,-29991,-29992,-29992,32767,32767,32767,-29993,-29994,-29994,-29995,-12851,-29996,-29997,-29998,-29998,-29999,-29999]} 1. e4 {[%emt 0:00:03]} e5 {[%emt 0:00:00]} 2. Nf3 {[%emt 0:00:26]} Nc6 {[%emt 0:00:00]} 3. Bb5 {[%emt 0:01:15]} a6 {[%emt 0:02:23]} 4. Ba4 {[%emt 0:01:12]} Nf6 {[%emt 0:02:43]} 5. O-O {[%emt 0:05:03]} d6 {[%emt 0:01:31]} 6. Re1 {[%emt 0:02:13]} Be7 {[%emt 0:00:38]} 7. c3 {[%emt 0:00:53]} O-O {[%emt 0:00:11]} 8. h3 {[%emt 0:01:22]} b5 {[%emt 0:13:44]} 9. Bb3 {[%emt 0:07:16]} Na5 {[%emt 0:03:25]} 10. Bc2 {[%emt 0:01:02]} c5 {[%emt 0:00:31]} 11. d4 {[%emt 0:01:46]} Nc6 {[%emt 0:00:26]} 12. d5 {[%emt 0:06:03]} Nb8 {[%emt 0:00:58]} 13. a4 {[%emt 0:01:40] C96: Spanische Partie (Abweichungen vom Tschigorin-System)} Bb7 {[%emt 0:03:22] LiveBook: 7 Games} (13... b4 14. a5 Nbd7 15. Nbd2 Rb8 16. Nc4 Ne8 17. Bd2 bxc3 18. bxc3 h6 19. g3 Ndf6 20. Kg2 Nh7 {1-0 (44) Kanarek,M (2527)-Dauth,B (2338) Germany 2016}) 14. Nbd2 {[%emt 0:01:44]} Nbd7 {[%emt 0:09:58]} 15. Nf1 {[%emt 0:02:26]} g6 {[%emt 0:05:16]} 16. Ng3 {[%emt 0:02:23]} Re8 {[%emt 0:00:33]} 17. Bg5 {[%emt 0:03:48]} Bf8 {[%emt 0:04:56]} (17... c4 $11 {remains equal.}) 18. Qd2 {[%emt 0:01:48]} Bg7 $146 {[%emt 0:01:56]} ({Vorgänger:} 18... Nb6 19. b3 Be7 20. a5 Nbd7 {½-½ (43) Diviak,R (1956)-Vogl,Z (1932) Slovakia 2017}) 19. Bh6 {[%emt 0:02:35]} Bxh6 {[%emt 0:05:45]} 20. Qxh6 {[%emt 0:01:16]} Qe7 {[%emt 0:00:12]} 21. Qg5 {[%emt 0:06:02]} Kh8 {[%emt 0:00:58]} 22. Nh2 {[%emt 0:03:29]} ({Better is} 22. b4 $16) 22... Nxd5 $1 {[%emt 0:01:35]} 23. Qd2 {[%emt 0:01:38]} Nf4 {[%emt 0:04:04]} 24. Nf3 {[%emt 0:04:46]} (24. Red1 $15) 24... Nf6 {[%emt 0:04:16]} 25. Rad1 {[%emt 0:01:46]} Red8 {[%emt 0:02:08]} 26. Qc1 {[%emt 0:01:12]} c4 {[%emt 0:02:19]} 27. b3 {[%emt 0:03:37]} Rac8 {[%emt 0:03:31]} 28. axb5 {[%emt 0:01:57]} axb5 {[%emt 0:00:27]} 29. b4 {[%emt 0:00:49]} Qc7 {[%emt 0:00:42]} 30. Ne2 {[%emt 0:02:41]} Nd3 {[%emt 0:02:19]} ({Resist} 30... Nxe4 31. Bxe4 Bxe4 32. Nxf4 $15) 31. Bxd3 {[%emt 0:00:23]} cxd3 {[%emt 0:00:08]} 32. Ng3 {[%emt 0:02:13]} Qxc3 {[%emt 0:04:08]} 33. Qg5 {[%emt 0:01:19]} Ng8 {[%emt 0:00:35]} 34. h4 {[%emt 0:01:13]} h6 {[%emt 0:05:03]} 35. Qg4 $2 {[%emt 0:01:03]} (35. Qe3 $17) 35... Nf6 {[%emt 0:00:06]} 36. Qh3 {[%emt 0:00:43]} Rc4 {[%emt 0:02:07]} 37. Nd2 {[%emt 0:01:05]} Bc8 {[%emt 0:00:45]} 38. Qh1 {[%emt 0:01:09]} Rxb4 {[%emt 0:00:27]} 39. f3 {[%emt 0:00:50]} Rb2 {[%emt 0:00:45]} 40. Ngf1 {[%emt 0:00:00]} Be6 {[%emt 0:00:00]} 41. Kh2 {[%emt 0:01:37]} Qd4 {[%emt 0:03:27]} 42. Qg1 {[%emt 0:00:47]} Qxg1+ {[%emt 0:01:30]} 43. Kxg1 {[%emt 0:00:09]} d5 {[%emt 0:01:18]} 44. exd5 {[%emt 0:01:03]} Rxd5 {[%emt 0:00:36]} 45. Ne3 {[%emt 0:00:17]} Rc5 {[%emt 0:00:41]} 46. g4 {[%emt 0:00:36]} Bb3 {[%emt 0:06:14]} 47. Nxb3 {[%emt 0:00:36]} Rxb3 {[%emt 0:00:06]} 48. Rd2 {[%emt 0:00:44]} e4 {[%emt 0:01:05]} 49. Kf2 {[%emt 0:02:38]} exf3 {[%emt 0:03:29]} 50. Kxf3 {[%emt 0:01:12]} Nd7 {[%emt 0:01:16]} 51. Red1 {[%emt 0:01:32]} f5 {[%emt 0:02:45]} 52. Kg3 {[%emt 0:03:56]} Re5 {[%emt 0:01:03]} 53. Kf3 {[%emt 0:01:03]} Nc5 {[%emt 0:02:31]} 54. gxf5 {[%emt 0:03:06]} gxf5 {[%emt 0:00:11]} 55. Kf4 {[%emt 0:00:44]} Re4+ {[%emt 0:01:19]} 56. Kf3 {[%emt 0:00:42]} Rbb4 {[%emt 0:00:38]} 57. Ra2 {[%emt 0:01:33]} Re8 {[%emt 0:03:04]} 58. Rh2 {[%emt 0:02:36]} Rbe4 {[%emt 0:01:30]} 59. Nf1 {[%emt 0:05:00]} Re2 {[%emt 0:01:03]} 60. Rf2 {[%emt 0:00:48] [#]} Ne4 $1 {[%emt 0:01:40]} 61. Rh2 {[%emt 0:01:12]} Rxh2 {[%emt 0:01:14]} 62. Nxh2 {[%emt 0:00:08]} d2 {[%emt 0:00:03]} 63. Nf1 {[%emt 0:02:36]} Kg7 {[%emt 0:00:23]} 64. Ne3 $2 {[%emt 0:01:31]} (64. Nxd2 Nc3 65. Ra1) 64... Kf6 {[%emt 0:01:05]} 65. Nf1 {[%emt 0:00:34]} Rd8 {[%emt 0:00:22]} 66. Ke3 {[%emt 0:00:53]} Ke5 {[%emt 0:00:41]} 67. Kf3 {[%emt 0:01:54]} b4 {[%emt 0:00:10]} (67... Rd3+ $142 68. Kg2 b4 69. Kh2 b3 70. Kg1 b2 71. h5 Nc3 72. Nxd2 Nxd1 73. Nc4+ Kf4 74. Nxb2 Nxb2 75. Kg2 Rd2+ 76. Kf1 Nd3 77. Kg1 Kg3 78. Kf1 Kh3 79. Kg1 Rd1#) 68. Nxd2 {[%emt 0:01:14]} Rxd2 {[%emt 0:00:11]} 69. Rxd2 {[%emt 0:00:26]} Nxd2+ {[%emt 0:00:04]} 70. Ke2 {[%emt 0:00:09]} Ne4 {[%emt 0:00:07]} 71. Kd1 {[%emt 0:00:09]} f4 {[%emt 0:00:03]} 72. Ke2 {[%emt 0:00:14]} b3 {[%emt 0:00:02]} 73. Kd1 {[%emt 0:00:07]} f3 {[%emt 0:00:04]} 74. Kc1 {[%emt 0:00:10]} f2 {[%emt 0:00:04]} 75. Kb2 {[%emt 0:00:04]} f1=Q {[%emt 0:00:05]} 76. Kxb3 {[%emt 0:00:07]} Kd4 {[%emt 0:00:14]} 77. Kb4 {[%emt 0:00:10]} Qb1+ {[%emt 0:00:24]} 78. Ka3 {[%emt 0:00:11]} Nc5 {[%emt 0:00:22]} 79. h5 {[%emt 0:00:14]} Qb3# {[%emt 0:00:03]} 0-1

[Event "FIDE WCCC U8 2018"]
[Site "Santiago de Compostela"]
[Date "2018.11.07"]
[Round "3"]
[White "Motoyama, Wesley Winsen"]
[Black "Hajdu, Marton Abris"]
[Result "0-1"]
[ECO "B34"]
[WhiteElo "1502"]
[BlackElo "1755"]
[Annotator "NA RC"]
[PlyCount "84"]
[EventDate "2018.11.04"]
[EventType "swiss"]
[EventCountry "ESP"]
[SourceTitle "playchess.com"]
[Source "ChessBase"]
[SourceQuality "1"]
[TimeControl "40/5400+30:1800+30"]

1. e4 {[%emt 0:00:00]} c5 {[%emt 0:00:00]} 2. Nf3 {[%emt 0:00:00]} Nc6 {[%emt 0:00:06]} 3. d4 {[%emt 0:00:36]} cxd4 4. Nxd4 {[%emt 0:00:06]} g6 {[%emt 0:00:33]} 5. Nc3 {[%emt 0:00:28]} Bg7 {[%emt 0:00:12]} 6. Be3 {[%emt 0:00:28]} Nf6 {[%emt 0:00:10]} 7. Nxc6 {[%emt 0:00:26]} bxc6 {[%emt 0:00:08]} 8. e5 {[%emt 0:00:28]} Nd5 {[%emt 0:00:40]} 9. Nxd5 {[%emt 0:00:46]} cxd5 {[%emt 0:00:16]} 10. Qxd5 {[%emt 0:00:12]} Rb8 {[%emt 0:00:07]} 11. Bxa7 {[%emt 0:01:17]} Rxb2 {[%emt 0:04:41]} 12. Bd4 {[%emt 0:01:21]} Rxc2 {[%emt 0:02:40]} 13. Bd3 {[%emt 0:02:58]} e6 {[%emt 0:04:02]} 14. Qb5 {[%emt 0:03:59]} Rc6 {[%emt 0:00:19]} 15. Qb4 {[%emt 0:02:01]} Qg5 {[%emt 0:05:46]} 16. O-O {[%emt 0:08:23]} Qf4 {[%emt 0:08:27]} 17. Bb5 {[%emt 0:08:06]} Bxe5 {[%emt 0:03:04]} 18. g3 {[%emt 0:04:59]} Qxd4 {[%emt 0:00:30]} 19. Qxd4 {[%emt 0:00:20]} Bxd4 {[%emt 0:00:05]} 20. Bxc6 {[%emt 0:01:13]} Bxa1 {[%emt 0:00:17]} 21. Bf3 {[%emt 0:00:46]} Bg7 {[%emt 0:00:27]} 22. a4 {[%emt 0:00:26]} O-O {[%emt 0:01:19]} 23. Rc1 {[%emt 0:00:36]} Ba6 {[%emt 0:00:29]} 24. Rc7 {[%emt 0:00:20]} d5 {[%emt 0:00:34]} 25. Ra7 {[%emt 0:00:23]} Bc4 {[%emt 0:00:42]} 26. a5 {[%emt 0:00:22]} Rb8 {[%emt 0:00:22]} 27. Kg2 {[%emt 0:00:18]} Bd4 {[%emt 0:00:28]} 28. a6 {[%emt 0:00:32]} Bxa7 {[%emt 0:00:03]} 29. h4 {[%emt 0:00:25]} Rb2 {[%emt 0:00:18]} 30. Kh3 {[%emt 0:00:27]} h5 {[%emt 0:00:09]} 31. Bg2 {[%emt 0:00:52]} Bxf2 {[%emt 0:00:21]} 32. Kh2 {[%emt 0:00:16]} Ba7 {[%emt 0:00:15]} 33. Kh3 {[%emt 0:00:19]} Bg1 {[%emt 0:00:19]} 34. g4 {[%emt 0:00:29]} Rb3+ {[%emt 0:00:21]} 35. Bf3 {[%emt 0:00:17]} hxg4+ {[%emt 0:00:28]} 36. Kxg4 {[%emt 0:00:21]} f5+ {[%emt 0:00:23]} 37. Kf4 {[%emt 0:00:22]} Bh2+ {[%emt 0:00:19]} 38. Kg5 {[%emt 0:00:10]} Kg7 {[%emt 0:00:21]} 39. a7 {[%emt 0:00:18]} Ra3 {[%emt 0:00:28]} 40. a8=Q {[%emt 0:00:00]} Rxa8 {[%emt 0:00:00]} 41. h5 {[%emt 0:00:46]} gxh5 {[%emt 0:00:46]} 42. Bxh5 {[%emt 0:00:13]} e5 {[%emt 0:00:24]} 0-1